fUST/lending_fUST_20260201
["ID","MTS","AMOUNT","RATE_DAILY","PERIOD"]
[404181540,1769903810334,-5000.0,0.00012317,2]
[404181541,1769903810375,-0.01,0.00012441,2]
[404181543,1769903996585,-5000.0,0.00012059,2]
[404181544,1769903996627,-0.01,0.00012181,2]
[404181545,1769904003888,-256.63624405,0.00012181,2]
[404181546,1769904003920,-4486.7375119,0.00012317,2]
[404181547,1769904003961,-513.2624881,0.00012317,2]
[404181548,1769904007349,-592.0,0.00012181,2]
[404181549,1769904007384,-538.09452194,0.00012566,2]
[404181550,1769904007424,-281.92807007,0.00012566,2]
[404181551,1769904007458,-300.0,0.00012566,2]
[404181552,1769904007494,-300.0,0.00012566,2]
[404181553,1769904007532,-300.0,0.00012566,2]
[404181554,1769904007569,-1200.0,0.00012566,2]
[404181555,1769904007732,-2975.96481598,0.00012567,2]
[404181556,1769904010383,-10000.01,0.00012567,2]
[404181557,1769904059546,-320.27,0.00012317,2]
[404181558,1769904113786,-402.64,0.000123,2]
[404181559,1769904113819,-1635.65602808,0.00012317,2]
[404181560,1769904113851,-151.36190528,0.00012379,2]
[404181561,1769904113884,-2200.43,0.00012441,2]
[404181562,1769904113914,-245.85807055,0.00012466,2]
[404181563,1769904113944,-349.25260214,0.00012466,2]
[404181564,1769904114047,-29.6127879,0.00012466,2]
[404181565,1769904126689,-5000.0,0.00012341,2]
[404181566,1769904126734,-0.01,0.00012465,2]
[404181567,1769904183065,-5000.0,0.00012292,2]
[404181568,1769904183116,-0.01,0.00012416,2]
[404181569,1769904189902,-3582.12842857,0.00012292,2]
[404181570,1769904189933,-299.99,0.00012416,2]
[404181571,1769904189964,-478.82506818,0.00012417,2]
[404181572,1769904189994,-416.23788378,0.00012417,2]
[404181573,1769904190064,-445.64723894,0.00012417,2]
[404181574,1769904196493,-1532.24021817,0.00012417,2]
[404181575,1769904196524,-2394.1253409,0.00012417,2]
[404181576,1769904196559,-500.0,0.00012466,2]
[404181577,1769904196592,-500.0,0.00012466,2]
[404181578,1769904196771,-147.27888186,0.00012466,2]
[404181579,1769904231538,-5000.0,0.00012341,2]
[404181580,1769904231580,-0.01,0.00012466,2]
[404181581,1769904242636,-352.71111814,0.00012466,2]
[404181582,1769904242671,-500.0,0.00012466,2]
[404181583,1769904242705,-500.0,0.00012466,2]
[404181584,1769904242741,-500.0,0.00012466,2]
[404181585,1769904242776,-500.0,0.00012466,2]
[404181586,1769904242812,-500.0,0.00012466,2]
[404181587,1769904242846,-581.19719497,0.00012466,2]
[404181588,1769904242881,-500.0,0.00012466,2]
[404181589,1769904242914,-173.55776283,0.00012466,2]
[404181590,1769904242949,-478.64719296,0.00012466,2]
[404181591,1769904243180,-300.0,0.00012465,2]
[404181592,1769904243190,-527.7834622,0.00012467,2]
[404181593,1769904260884,151.0,0.00037173,31]
[404181594,1769904261174,151.4381,0.00037173,31]
[404181595,1769904264559,-5000.0,0.00012342,2]
[404181596,1769904264606,-0.01,0.00012467,2]
[404181597,1769904275628,-10000.01,0.00012467,2]
[404181598,1769904310328,-395.89406729,0.00012323,2]
[404181599,1769904310361,-4208.22186542,0.00012342,2]
[404181600,1769904310403,-791.77813458,0.00012342,2]
[404181601,1769904311050,-300.0,0.00012466,2]
[404181602,1769904311081,-300.0,0.00012466,2]
[404181603,1769904311140,-8800.01,0.00012467,2]
[404181604,1769904311175,-10000.01,0.00012467,2]
[404181605,1769904311355,-10000.01,0.00012467,2]
[404181606,1769904311501,-10000.01,0.00012467,2]
[404181607,1769904311635,-10000.01,0.00012467,2]
[404181608,1769904311754,-10000.01,0.00012467,2]
[404181609,1769904322932,-5000.0,0.00012342,2]
[404181610,1769904322980,-0.01,0.00012467,2]
[404181611,1769904323050,-10000.01,0.00012467,2]
[404181612,1769904323173,-10000.01,0.00012467,2]
[404181613,1769904323338,-10000.01,0.00012467,2]
[404181614,1769904323460,-10000.01,0.00012467,2]
[404181615,1769904323589,-10000.01,0.00012467,2]
[404181616,1769904323717,-10000.01,0.00012467,2]
[404181617,1769904415516,-1329.26570149,0.00012034,2]
[404181618,1769904415554,-2341.47859702,0.00012205,2]
[404181619,1769904415598,-2658.52140298,0.00012205,2]
[404181620,1769904417052,-151.33466717,0.00012267,2]
[404181621,1769904417082,-782.16,0.00012329,2]
[404181622,1769904417112,-300.0,0.00012466,2]
[404181623,1769904417183,-7533.02066566,0.00012467,2]
[404181624,1769904419452,-10000.01,0.00012467,2]
[404181625,1769904419936,-10000.01,0.00012467,2]
[404181626,1769904420085,-10000.01,0.00012467,2]
[404181627,1769904420201,-10000.01,0.00012467,2]
[404181628,1769904420325,-10000.01,0.00012467,2]
[404181629,1769904424320,-300.0,0.00012466,2]
[404181630,1769904424368,-9400.01,0.00012467,2]
[404181631,1769904426127,-609.06321031,0.00012467,2]
[404181632,1769904483623,232.46,2.997e-05,2]
[404181634,1769904513078,151.0,0.00037173,31]
[404181635,1769904513354,151.0,0.00037173,31]
[404181636,1769904513648,197.211337,0.00037173,31]
[404181637,1769904563089,151.0,0.00037173,31]
[404181638,1769904563380,188.198064,0.00037173,31]
[404181640,1769904610960,234.111517,0.00037173,31]
[404181641,1769904619098,151.0,0.00037173,31]
[404181642,1769904619425,151.0,0.00037173,31]
[404181643,1769904619729,151.0,0.00037173,31]
[404181644,1769904620111,151.0,0.00037173,31]
[404181645,1769904620413,151.0,0.00037173,31]
[404181646,1769904620743,151.0,0.00037173,31]
[404181647,1769904621027,288.179184,0.00037173,31]
[404181656,1769904632646,-178.92208645,0.00011823,2]
[404181657,1769904632656,-157.43607312,0.00011823,2]
[404181658,1769904632668,-452.45036262,0.00011882,2]
[404181659,1769904632679,-73.81035358,0.00012119,2]
[404181660,1769904632707,-325.65358232,0.00012119,2]
[404181661,1769904632802,-591.0,0.00012119,2]
[404181662,1769904632839,-290.55490009,0.00012322,2]
[404181685,1769904638828,-909.44509991,0.00012322,2]
[404181687,1769904638839,-210.91183852,0.00012323,2]
[404181689,1769904638850,-379.64130934,0.00012323,2]
[404181691,1769904638859,-674.91788328,0.00012323,2]
[404181692,1769904638869,-300.0,0.0001234,2]
[404181693,1769904638878,-300.0,0.00012341,2]
[404181694,1769904638888,-20551.80901491,0.00012467,2]
[404181698,1769904641613,-0.00066277,0.00012467,2]
[404181699,1769904641626,-28509.96594353,0.00012467,2]
[404181700,1769904641637,-189.53672258,0.00012603,2]
[404181701,1769904641656,-151.0,0.000128,2]
[404181702,1769904641668,-300.0,0.00012817,2]
[404181703,1769904641678,-300.0,0.00012817,2]
[404181704,1769904641688,-300.0,0.00012817,2]
[404181705,1769904641698,-300.0,0.00012817,2]
[404181706,1769904641708,-300.0,0.00012817,2]
[404181707,1769904641718,-300.0,0.00012817,2]
[404181708,1769904641728,-300.0,0.00012817,2]
[404181709,1769904641738,-300.0,0.00012817,2]
[404181710,1769904641748,-300.0,0.00012817,2]
[404181711,1769904641757,-300.0,0.00012817,2]
[404181712,1769904641767,-300.0,0.00012817,2]
[404181713,1769904641776,-300.0,0.00012817,2]
[404181714,1769904641786,-300.0,0.00012817,2]
[404181715,1769904641796,-300.0,0.00012817,2]
[404181716,1769904641806,-300.0,0.00012817,2]
[404181717,1769904641815,-600.0,0.00012817,2]
[404181718,1769904641825,-7631.74591641,0.000129,2]
[404181719,1769904641835,-481.12832043,0.00012972,2]
[404181720,1769904641845,-417.50752276,0.00012972,2]
[404181721,1769904641855,-191.86313781,0.00012972,2]
[404181722,1769904641864,-1341.49200421,0.00012972,2]
[404181723,1769904641874,-2096.08125658,0.00012972,2]
[404181724,1769904641883,-345.35364805,0.00012972,2]
[404181725,1769904641893,-866.03097677,0.00012972,2]
[404181726,1769904641903,-500.0,0.00012999,2]
[404181727,1769904641912,-150.0,0.00012999,2]
[404181728,1769904641922,-151.14235464,0.00012999,2]
[404181729,1769904641932,-150.0,0.00012999,2]
[404181730,1769904641941,-201.4653447,0.00012999,2]
[404181731,1769904641951,-150.0,0.00012999,2]
[404181732,1769904641961,-500.0,0.00012999,2]
[404181733,1769904641970,-150.0,0.00012999,2]
[404181734,1769904641979,-500.0,0.00012999,2]
[404181735,1769904641988,-211.02010196,0.00012999,2]
[404181736,1769904641998,-150.0,0.00012999,2]
[404181737,1769904642008,-150.0,0.00012999,2]
[404181738,1769904642018,-500.0,0.00012999,2]
[404181739,1769904642027,-150.0,0.00012999,2]
[404181740,1769904642037,-205.51075619,0.00012999,2]
[404181741,1769904642047,-284.2999951,0.00012999,2]
[404181742,1769904642056,-150.0,0.00012999,2]
[404181743,1769904642066,-200.0,0.00012999,2]
[404181744,1769904642075,-150.04544564,0.00012999,2]
[404181745,1769904642084,-150.0,0.00012999,2]
[404181746,1769904642094,-275.14707318,0.00012999,2]
[404181747,1769904642104,-150.0,0.00012999,2]
[404181748,1769904642113,-533.196166,0.00013056,2]
[404181749,1769904642123,-151.0,0.000131,2]
[404181750,1769904642132,-500.0,0.00013136,2]
[404181751,1769904642142,-150.0,0.00013136,2]
[404181752,1769904642151,-500.0,0.00013136,2]
[404181753,1769904642160,-500.0,0.00013136,2]
[404181754,1769904642170,-500.0,0.00013136,2]
[404181755,1769904642180,-150.0,0.00013136,2]
[404181756,1769904642189,-172.10064938,0.00013272,2]
[404181757,1769904642199,-500.0,0.00013273,2]
[404181758,1769904642208,-218.55727424,0.00013273,2]
[404181759,1769904642218,-623.39633756,0.00013273,2]
[404181760,1769904642227,-500.0,0.00013273,2]
[404181761,1769904642237,-500.0,0.00013273,2]
[404181762,1769904642246,-179.66410216,0.00013273,2]
[404181763,1769904642256,-500.0,0.00013273,2]
[404181764,1769904642265,-152.63886789,0.00013273,2]
[404181765,1769904642274,-500.0,0.00013273,2]
[404181766,1769904642284,-500.0,0.00013273,2]
[404181767,1769904642293,-500.0,0.00013273,2]
[404181768,1769904642303,-500.0,0.00013273,2]
[404181769,1769904642312,-500.0,0.00013273,2]
[404181770,1769904642321,-500.0,0.00013273,2]
[404181771,1769904642331,-500.0,0.00013273,2]
[404181772,1769904642340,-500.0,0.00013273,2]
[404181773,1769904642349,-500.0,0.00013273,2]
[404181774,1769904642358,-317.17428201,0.00013273,2]
[404181775,1769904642368,-500.0,0.00013273,2]
[404181776,1769904642377,-500.0,0.00013273,2]
[404181777,1769904642386,-500.0,0.00013273,2]
[404181778,1769904642396,-500.0,0.00013273,2]
[404181779,1769904642405,-500.0,0.00013273,2]
[404181780,1769904642415,-500.0,0.00013273,2]
[404181781,1769904642424,-150.0,0.00013273,2]
[404181782,1769904642434,-250.0,0.00013273,2]
[404181783,1769904642444,-500.000001,0.00013273,2]
[404181784,1769904642454,-150.0,0.00013273,2]
[404181785,1769904642464,-150.0,0.00013273,2]
[404181786,1769904642473,-151.0,0.000133,2]
[404181787,1769904642483,-500.0,0.0001341,2]
[404181788,1769904642492,-150.0,0.0001341,2]
[404181789,1769904642502,-150.0,0.0001341,2]
[404181790,1769904642512,-322.11762053,0.00013432,2]
[404181791,1769904642521,-322.12,0.00013468,2]
[404181792,1769904642531,-220.28,0.00013468,2]
[404181793,1769904642540,-4085.29813735,0.000135,2]
[404181794,1769904642549,-420.0,0.00013542,2]
[404181795,1769904642559,-174.3627066,0.00013547,2]
[404181796,1769904642568,-150.0,0.00013547,2]
[404181797,1769904642578,-151.0,0.000136,2]
[404181798,1769904642587,-533.196166,0.00013605,2]
[404181799,1769904642603,-613.96204098,0.00013625,2]
[404181800,1769904642613,-1539.61062537,0.00013628,2]
[404181801,1769904642622,-250.0,0.00013684,2]
[404181802,1769904642632,-3789.85,0.0001369,2]
[404181803,1769904642644,-301.98559799,0.00013698,2]
[404181804,1769904642653,-500.0,0.00013698,2]
[404181805,1769904642663,-500.0,0.00013698,2]
[404181806,1769904642675,-1000.0,0.00013699,2]
[404181807,1769904642684,-472.276456,0.00013699,2]
[404181808,1769904642694,-231.28910366,0.00013699,2]
[404181809,1769904642704,-500.0,0.00013699,2]
[404181810,1769904642714,-500.0,0.00013699,2]
[404181811,1769904642724,-500.0,0.00013699,2]
[404181812,1769904642734,-214.82838543,0.00013699,2]
[404181813,1769904642743,-176.2,0.000138,2]
[404181814,1769904642753,-151.0,0.000138,2]
[404181815,1769904642763,-1000.0,0.00013821,2]
[404181816,1769904642773,-594.86628206,0.00013821,2]
[404181817,1769904642783,-1000.0,0.00013821,2]
[404181818,1769904642793,-1000.0,0.00013821,2]
[404181819,1769904642802,-500.89955537,0.00013821,2]
[404181820,1769904642811,-1000.0,0.00013821,2]
[404181821,1769904642820,-500.0,0.00013821,2]
[404181822,1769904642830,-488.50652582,0.00013821,2]
[404181823,1769904642839,-750.50262825,0.00014,2]
[404181824,1769904642849,-151.0,0.00014,2]
[404181825,1769904642859,-720.0,0.00014099,2]
[404181826,1769904642868,-533.196166,0.00014155,2]
[404181827,1769904642878,-796.25821529,0.00014247,2]
[404181828,1769904642889,-178.57490726,0.00014267,2]
[404181829,1769904642899,-151.0,0.000143,2]
[404181830,1769904642909,-1004.6841927,0.00014368,2]
[404181831,1769904642919,-1500.0,0.00014368,2]
[404181832,1769904642928,-1500.0,0.00014368,2]
[404181833,1769904642938,-1500.0,0.00014368,2]
[404181834,1769904642950,-151.0,0.000145,2]
[404181835,1769904643046,-2167.89053445,0.00014605,5]
[404181836,1769904643057,-533.196166,0.00014704,2]
[404181837,1769904643066,-587.0,0.00014861,2]
[404181838,1769904643077,-805.6632989,0.00014876,2]
[404181839,1769904643087,-151.0,0.000149,2]
[404181840,1769904643097,-2000.0,0.00014916,2]
[404181841,1769904643106,-1244.71254619,0.00014916,2]
[404181842,1769904643115,-5000.0,0.00015,2]
[404181843,1769904643124,-1374.9902023,0.00015,2]
[404181845,1769904643134,-1000.0,0.00015,2]
[404181847,1769904643149,-151.0,0.00015,2]
[404181848,1769904643159,-184.990924,0.00015068,2]
[404181849,1769904643168,-533.196166,0.00015254,2]
[404181850,1769904643177,-691.13,0.00015342,2]
[404181851,1769904643186,-151.0,0.000154,2]
[404181852,1769904643196,-2423.93375556,0.00015464,2]
[404181853,1769904643205,-151.0,0.000155,2]
[404181854,1769904643214,-864.0,0.00015509,2]
[404181855,1769904643224,-533.196166,0.00015804,2]
[404181856,1769904643233,-151.0,0.000159,2]
[404181857,1769904643242,-1000.0,0.00016,2]
[404181858,1769904643252,-151.0,0.00016,2]
[404181859,1769904643261,-205.81514735,0.00016267,2]
[404181860,1769904643270,-823.0,0.00016308,2]
[404181861,1769904643280,-151.0,0.000164,2]
[404181862,1769904643289,-151.0,0.000164,2]
[404181863,1769904643298,-342.82541967,0.00016438,2]
[404181864,1769904643308,-151.0,0.000165,2]
[404181865,1769904643317,-3209.29085953,0.00016504,2]
[404181866,1769904643326,-1072.3828013,0.00016881,2]
[404181867,1769904643336,-151.0,0.000169,2]
[404181868,1769904643345,-25039.17152224,0.00017,2]
[404181869,1769904643355,-1000.0,0.00017,2]
[404181870,1769904643364,-151.0,0.00017,2]
[404181871,1769904643374,-151.0,0.00017,2]
[404181872,1769904643383,-1000.0,0.0001706,2]
[404181873,1769904643392,-1552.28916669,0.00017373,2]
[404181874,1769904643402,-306.99184261,0.00017373,2]
[404181875,1769904643411,-3670.10604106,0.0001743,2]
[404181876,1769904643421,-73651.80285551,0.0001747,2]
[404181984,1769904645733,-3170.68801967,0.0001747,2]
[404182023,1769904646887,-7553.5579409,0.0001747,2]
[404182026,1769904647108,-32377.05949853,0.0001747,2]
[404182027,1769904647121,-3933.39560258,0.0001747,2]
[404182038,1769904703108,350.0,0.00037173,30]
[404182039,1769904724851,-200.0,0.00012367,2]
[404182040,1769904726021,-200.0,0.00012367,2]
[404182041,1769904726924,-200.0,0.00012367,2]
[404182042,1769904727054,-9767.55,0.00012367,2]
[404182045,1769904737444,-10000.01,0.00012367,2]
[404182046,1769904753769,151.0,0.00037173,31]
[404182047,1769904754060,151.0,0.00037173,31]
[404182048,1769904754351,151.0,0.00037173,31]
[404182049,1769904754638,151.0,0.00037173,31]
[404182050,1769904754949,151.0,0.00037173,31]
[404182051,1769904755249,151.0,0.00037173,31]
[404182052,1769904762066,-200.0,0.00012243,2]
[404182053,1769904764030,-100.0,0.00012243,2]
[404182054,1769904764055,-100.0,0.00012367,2]
[404182055,1769904765812,-200.0,0.00012367,2]
[404182056,1769904766988,-200.0,0.00012367,2]
[404182057,1769904769166,-200.0,0.00012367,2]
[404182058,1769904772016,-10000.0,0.00012367,2]
[404182059,1769904791130,-300.0,0.00012366,2]
[404182060,1769904791174,-9400.01,0.00012367,2]
[404182061,1769904791347,-10000.01,0.00012367,2]
[404182062,1769904791458,-10000.01,0.00012367,2]
[404182063,1769904791620,-10000.01,0.00012367,2]
[404182064,1769904804906,-10000.01,0.00012367,2]
[404182065,1769904805023,-10000.01,0.00012367,2]
[404182066,1769904805089,-300.0,0.00012367,2]
[404182067,1769904805163,-10000.01,0.00012367,2]
[404182068,1769904805320,-10000.01,0.00012367,2]
[404182069,1769904808051,-300.0,0.00012367,2]
[404182070,1769904809702,-300.0,0.00012367,2]
[404182071,1769904814603,-172.56,0.000123,2]
[404182072,1769904814651,-9654.89,0.00012367,2]
[404182073,1769904815925,151.0,0.00037173,30]
[404182074,1769904816517,151.0,0.00037173,30]
[404182075,1769904816811,151.0,0.00037173,30]
[404182076,1769904817102,151.0,0.00037173,30]
[404182077,1769904817387,163.61673,0.00037173,30]
[404182078,1769904820875,-5000.0,0.00012177,2]
[404182079,1769904820902,-21000.0,0.00012367,2]
[404182080,1769904822969,-10000.01,0.00012367,2]
[404182081,1769904826972,-5000.0,0.00012243,2]
[404182082,1769904827092,-0.01,0.00012367,2]
[404182083,1769904827200,-10000.01,0.00012367,2]
[404182084,1769904827325,-10000.01,0.00012367,2]
[404182085,1769904827453,-10000.01,0.00012367,2]
[404182086,1769904833419,-10000.01,0.00012367,2]
[404182087,1769904833534,-10000.01,0.00012367,2]
[404182089,1769904837227,-10000.01,0.00012367,2]
[404182090,1769904837370,-10000.01,0.00012367,2]
[404182091,1769904837707,-10000.01,0.00012367,2]
[404182092,1769904848125,-300.0,0.00012243,2]
[404182093,1769904848992,-1759.6901689,0.00012121,2]
[404182094,1769904849016,-4700.0,0.00012243,2]
[404182095,1769904849042,-300.0,0.00012366,2]
[404182096,1769904849073,-13240.3098311,0.00012367,2]
[404182097,1769904849104,-300.0,0.00012367,2]
[404182098,1769904870252,-5000.0,0.00012121,2]
[404182099,1769904870273,-5000.0,0.00012243,2]
[404182100,1769904870301,-6577.7307886,0.00012367,2]
[404182101,1769904870327,-150.0,0.0001249,2]
[404182102,1769904870348,-600.0,0.000125,2]
[404182103,1769904870373,-300.0,0.00012613,2]
[404182104,1769904870398,-300.0,0.00012613,2]
[404182105,1769904870421,-300.0,0.00012613,2]
[404182106,1769904870444,-300.0,0.00012613,2]
[404182107,1769904870467,-300.0,0.00012613,2]
[404182108,1769904870490,-300.0,0.00012613,2]
[404182109,1769904870517,-300.0,0.00012613,2]
[404182110,1769904870542,-300.0,0.00012613,2]
[404182111,1769904870566,-300.0,0.00012613,2]
[404182112,1769904870590,-300.0,0.00012613,2]
[404182113,1769904870613,-300.0,0.00012613,2]
[404182114,1769904870637,-300.0,0.00012613,2]
[404182115,1769904870664,-300.0,0.00012613,2]
[404182116,1769904870694,-300.0,0.00012613,2]
[404182117,1769904870720,-300.0,0.00012613,2]
[404182118,1769904870745,-600.0,0.00012613,2]
[404182119,1769904870767,-7572.2692114,0.000129,2]
[404182120,1769904927609,151.0,0.00037159,31]
[404182121,1769904927886,151.0,0.00037159,31]
[404182122,1769904928195,151.0,0.00037159,31]
[404182123,1769904937292,275.40524366,0.00012366,2]
[404182124,1769904937350,185.95086254,0.00012366,2]
[404182125,1769904937647,500.0,0.00012366,2]
[404182126,1769904937689,500.0,0.00012366,2]
[404182127,1769904937735,500.0,0.00012366,2]
[404182128,1769904937785,646.92095625,0.00012366,2]
[404182129,1769904960427,180.11046574,0.00012367,2]
[404182130,1769904971436,7211.62247181,0.00012267,2]
[404182131,1769904971468,10000.01,0.00012267,2]
[404182132,1769904971501,10000.01,0.00012267,2]
[404182133,1769904971532,10000.01,0.00012267,2]
[404182134,1769904971564,10000.01,0.00012267,2]
[404182135,1769904971595,10000.01,0.00012267,2]
[404182136,1769904978321,-7000.0,0.00012267,2]
[404182137,1769904984368,-300.0,0.00012267,2]
[404182138,1769905023364,-300.0,0.00012266,2]
[404182139,1769905036695,-9400.01,0.00012267,2]
[404182140,1769905037020,-10000.01,0.00012267,2]
[404182141,1769905037294,-10000.01,0.00012267,2]
[404182142,1769905042616,223.651374,0.00037159,31]
[404182143,1769905049571,-10000.01,0.00012267,2]
[404182144,1769905051564,151.0,0.00037159,31]
[404182145,1769905051855,156.757451,0.00037159,31]
[404182146,1769905061616,-10000.01,0.00012267,2]
[404182147,1769905085456,-300.0,0.00011668,2]
[404182148,1769905085482,-963.60363891,0.00011669,2]
[404182149,1769905087065,-414.90476826,0.00011669,2]
[404182150,1769905089934,-224.86107792,0.00011553,2]
[404182151,1769905187958,-5000.0,0.00011437,2]
[404182152,1769905188001,-0.01,0.00011553,2]
[404182153,1769905194691,-97.69547011,0.00011553,2]
[404182154,1769905194730,-500.0,0.00011668,2]
[404182155,1769905194767,-500.0,0.00011668,2]
[404182156,1769905194803,-500.0,0.00011668,2]
[404182157,1769905194840,-500.0,0.00011668,2]
[404182158,1769905194879,-500.0,0.00011668,2]
[404182159,1769905194912,-500.0,0.00011668,2]
[404182160,1769905194945,-500.0,0.00011668,2]
[404182161,1769905194978,-500.0,0.00011668,2]
[404182162,1769905195012,-278.65144996,0.00011668,2]
[404182163,1769905195048,-500.0,0.00011668,2]
[404182164,1769905195263,-247.31615986,0.00011668,2]
[404182165,1769905201542,-252.68384014,0.00011668,2]
[404182166,1769905201577,-500.0,0.00011668,2]
[404182167,1769905201611,-500.0,0.00011668,2]
[404182168,1769905201648,-500.0,0.00011668,2]
[404182169,1769905201683,-500.0,0.00011668,2]
[404182170,1769905201718,-500.0,0.00011668,2]
[404182171,1769905201755,-500.0,0.00011668,2]
[404182172,1769905201865,-500.0,0.00011668,2]
[404182173,1769905201921,-500.0,0.00011668,2]
[404182174,1769905201957,-500.0,0.00011668,2]
[404182175,1769905202169,-300.0,0.00011667,2]
[404182176,1769905202178,-194.64231972,0.00011668,2]
[404182177,1769905269629,-639.76584618,0.00011436,2]
[404182178,1769905269666,-3282.61107544,0.00011552,2]
[404182179,1769905269700,-300.0,0.00011666,2]
[404182180,1769905269734,-300.0,0.00011666,2]
[404182181,1769905269768,-300.0,0.00011667,2]
[404182182,1769905269806,-55.25615676,0.00011667,2]
[404182183,1769905269928,-244.74384324,0.00011667,2]
[404182184,1769905279770,-1200.0,0.00011667,2]
[404182185,1769905279806,-387.62026733,0.00011667,2]
[404182186,1769905279843,-500.0,0.00011667,2]
[404182187,1769905279877,-500.0,0.00011667,2]
[404182188,1769905279912,-500.0,0.00011667,2]
[404182189,1769905279946,-500.0,0.00011667,2]
[404182190,1769905279994,-500.0,0.00011667,2]
[404182191,1769905280029,-500.0,0.00011667,2]
[404182192,1769905280064,-324.76946534,0.00011667,2]
[404182193,1769905280228,-175.23053466,0.00011667,2]
[404182194,1769905303876,-500.0,0.00011667,2]
[404182195,1769905303912,-500.0,0.00011667,2]
[404182196,1769905303947,-500.0,0.00011667,2]
[404182197,1769905303982,-500.0,0.00011667,2]
[404182198,1769905304015,-500.0,0.00011667,2]
[404182199,1769905304047,-500.0,0.00011667,2]
[404182200,1769905304081,-500.0,0.00011667,2]
[404182201,1769905304114,-500.0,0.00011667,2]
[404182202,1769905304147,-500.0,0.00011667,2]
[404182203,1769905304179,-229.13877455,0.00011667,2]
[404182204,1769905304306,-41.7324509,0.00011667,2]
[404182205,1769905304495,-458.2675491,0.00011667,2]
[404182206,1769905311912,-500.0,0.00011667,2]
[404182207,1769905311957,-500.0,0.00011667,2]
[404182208,1769905312002,-500.0,0.00011667,2]
[404182209,1769905312044,-500.0,0.00011667,2]
[404182210,1769905312089,-500.0,0.00011667,2]
[404182211,1769905312133,-500.0,0.00011667,2]
[404182212,1769905312175,-500.0,0.00011667,2]
[404182213,1769905312219,-500.0,0.00011667,2]
[404182214,1769905312262,-646.96271848,0.00011667,2]
[404182215,1769905312306,-206.08456304,0.00011667,2]
[404182216,1769905312550,-293.91543696,0.00011667,2]
[404182217,1769905353931,-300.0,0.00011666,2]
[404182218,1769905353967,-150.0,0.00011667,2]
[404182219,1769905354002,-500.0,0.00011667,2]
[404182220,1769905354036,-500.0,0.00011667,2]
[404182221,1769905354071,-500.0,0.00011667,2]
[404182222,1769905354105,-500.0,0.00011667,2]
[404182223,1769905354137,-500.0,0.00011667,2]
[404182224,1769905354170,-500.0,0.00011667,2]
[404182225,1769905354207,-500.0,0.00011667,2]
[404182226,1769905354245,-152.68705725,0.00011667,2]
[404182227,1769905354280,-500.0,0.00011667,2]
[404182228,1769905354313,-294.6358855,0.00011667,2]
[404182229,1769905354663,-205.3641145,0.00011667,2]
[404182230,1769905360899,-500.0,0.00011667,2]
[404182231,1769905360934,-500.0,0.00011667,2]
[404182232,1769905360971,-500.0,0.00011667,2]
[404182233,1769905361007,-500.0,0.00011667,2]
[404182234,1769905361041,-500.0,0.00011667,2]
[404182235,1769905361075,-500.0,0.00011667,2]
[404182236,1769905361109,-500.0,0.00011667,2]
[404182237,1769905361143,-500.0,0.00011667,2]
[404182238,1769905361177,-500.0,0.00011667,2]
[404182239,1769905361210,-500.0,0.00011667,2]
[404182240,1769905361391,-0.01,0.00011667,2]